fUSD/lending_fUSD_20240412
["ID","MTS","AMOUNT","RATE_DAILY","PERIOD"]
[322261894,1712916693707,-154.57743463,0.00034821,7]
[322261895,1712916693717,-1757.99,0.00034828,30]
[322261896,1712916693726,-1757.99,0.00034828,30]
[322261897,1712916693736,-150.0,0.000349,4]
[322261898,1712916693745,-150.0,0.000349,16]
[322261899,1712916693755,-154.61190407,0.00034912,10]
[322261900,1712916693765,-1013.2,0.00034935,2]
[322261901,1712916693774,-150.0,0.00034956,2]
[322261902,1712916693783,-100000.0,0.00035,25]
[322261903,1712916693793,-937.30779898,0.00035,2]
[322261904,1712916693802,-151.0,0.00035,7]
[322261905,1712916693811,-151.0,0.00035,7]
[322261906,1712916693820,-158.570223,0.00035,7]
[322261907,1712916693830,-151.0,0.00035,7]
[322261908,1712916693839,-151.0,0.00035,7]
[322261909,1712916693848,-151.0,0.00035,7]
[322261910,1712916693858,-151.0,0.00035,7]
[322261911,1712916693867,-151.0,0.00035,7]
[322261912,1712916693877,-151.0,0.00035,7]
[322261913,1712916693886,-151.0,0.00035,7]
[322261914,1712916693896,-251.329244,0.00035,7]
[322261915,1712916693905,-151.0,0.00035,7]
[322261916,1712916693915,-151.0,0.00035,7]
[322261917,1712916693925,-151.0,0.00035,7]
[322261918,1712916693934,-151.0,0.00035,7]
[322261919,1712916693943,-160.62596681,0.00035025,7]
[322261920,1712916693952,-506.52,0.00035026,7]
[322261921,1712916693961,-500.0,0.00035026,7]
[322261922,1712916693970,-527.69,0.00035026,7]
[322261923,1712916693980,-500.0,0.00035026,7]
[322261924,1712916693989,-666.66,0.00035026,7]
[322261925,1712916693998,-752.76,0.00035026,7]
[322261926,1712916694008,-586.11,0.00035026,7]
[322261927,1712916694018,-537.49,0.00035026,7]
[322261928,1712916694027,-500.0,0.00035026,7]
[322261929,1712916694037,-764.86,0.00035026,7]
[322261930,1712916694046,-550.76,0.00035026,7]
[322261931,1712916694056,-813.78,0.00035026,7]
[322261932,1712916694066,-160.579906,0.00035026,7]
[322261933,1712916694076,-151.0,0.00035026,7]
[322261934,1712916694085,-720.83,0.00035026,7]
[322261935,1712916694095,-239.51068,0.00035026,7]
[322261936,1712916694105,-207.064247,0.00035026,7]
[322261937,1712916694114,-151.0,0.00035026,7]
[322261938,1712916694124,-151.0,0.00035026,7]
[322261939,1712916694133,-156.953207,0.00035026,7]
[322261940,1712916694142,-156.953207,0.00035026,7]
[322261941,1712916694150,-151.0,0.00035026,7]
[322261942,1712916694159,-151.0,0.00035026,7]
[322261943,1712916694168,-638.66,0.00035027,7]
[322261944,1712916694178,-500.0,0.00035027,7]
[322261945,1712916694187,-219.42076058,0.00035027,7]
[322261946,1712916694197,-577.83,0.00035027,7]
[322261947,1712916694206,-544.32,0.00035027,7]
[322261948,1712916694215,-638.14,0.00035027,7]
[322261949,1712916694225,-708.33,0.00035027,2]
[322261950,1712916694233,-597.04,0.00035027,7]
[322261951,1712916694243,-507.78,0.00035027,7]
[322261952,1712916694253,-318.2,0.0003503,2]
[322261953,1712916694262,-4252.62701144,0.00035094,6]
[322261954,1712916694272,-185.62716117,0.00035094,2]
[322261955,1712916694281,-479.02651826,0.00035094,2]
[322261956,1712916694291,-7217.41553013,0.00035094,2]
[322261957,1712916694300,-643.0,0.00035094,2]
[322261958,1712916694309,-943.6124962,0.00035094,2]
[322261959,1712916694319,-557.34899794,0.00035094,2]
[322261960,1712916694328,-169.83525448,0.00035094,2]
[322261961,1712916694337,-702.20776656,0.00035094,2]
[322261962,1712916694347,-500.0,0.00035094,2]
[322261963,1712916694356,-550.0,0.00035094,2]
[322261964,1712916694365,-980.60759434,0.00035094,2]
[322261965,1712916694374,-500.0,0.00035094,2]
[322261966,1712916694383,-1005.25400921,0.00035094,2]
[322261967,1712916694393,-547.92017191,0.00035094,2]
[322261968,1712916694402,-150.0,0.00035094,2]
[322261969,1712916694411,-635.46741225,0.00035094,2]
[322261970,1712916694420,-609.49837063,0.00035094,2]
[322261971,1712916694429,-208.98868373,0.00035094,2]
[322261972,1712916694438,-437.28375193,0.00035094,2]
[322261973,1712916694448,-1038.41799516,0.00035094,2]
[322261974,1712916694456,-563.77176444,0.00035094,2]
[322261975,1712916694466,-234.21524962,0.00035094,2]
[322261976,1712916694475,-524.46681961,0.00035094,2]
[322261977,1712916694484,-887.87120328,0.00035094,2]
[322261978,1712916694493,-468.56272909,0.00035094,2]
[322261979,1712916694503,-385.0726192,0.00035094,2]
[322261980,1712916694512,-240.48623859,0.00035094,2]
[322261981,1712916694522,-316.94520274,0.00035094,2]
[322261982,1712916694531,-532.93634273,0.00035094,2]
[322261983,1712916694541,-354.74000938,0.00035094,2]
[322261984,1712916694550,-593.00899665,0.00035094,2]
[322261985,1712916694560,-337.6383419,0.00035094,2]
[322261986,1712916694571,-1005.65197391,0.00035094,2]
[322261987,1712916694581,-214.25680318,0.00035094,2]
[322261988,1712916694591,-1004.77757756,0.00035094,2]
[322261989,1712916694600,-150.0,0.00035094,2]
[322261990,1712916694610,-201.92,0.00035094,2]
[322261991,1712916694619,-154.61190407,0.00035094,9]
[322261992,1712916694628,-154.61190407,0.00035094,9]
[322261993,1712916694638,-154.61190407,0.00035094,9]
[322261994,1712916694647,-154.61190407,0.00035094,9]
[322261995,1712916694656,-154.61190407,0.00035094,9]
[322261996,1712916694666,-154.61190407,0.00035094,9]
[322261997,1712916694675,-154.61190405,0.00035094,9]
[322261998,1712916694688,-1000.0,0.00035094,2]
[322261999,1712916694697,-1000.0,0.00035094,2]
[322262000,1712916694707,-1000.0,0.00035094,2]
[322262001,1712916694716,-1000.0,0.00035094,2]
[322262002,1712916694726,-1000.0,0.00035094,2]
[322262003,1712916694735,-1000.0,0.00035094,2]
[322262004,1712916694744,-7503.22805767,0.00035094,2]
[322262005,1712916694753,-275.5,0.000351,2]
[322262006,1712916694766,-1757.99,0.00035101,30]
[322262007,1712916694776,-1757.99,0.00035101,30]
[322262008,1712916694786,-160.62596681,0.00035114,7]
[322262009,1712916694795,-983.26,0.000352,2]
[322262010,1712916694804,-609.5,0.000352,2]
[322262011,1712916694814,-155.07714216,0.00035214,7]
[322262012,1712916694823,-152.35,0.00035225,2]
[322262013,1712916694833,-910.06,0.00035288,15]
[322262014,1712916694843,-154.14042621,0.00035294,7]
[322262015,1712916694853,-506.57012452,0.00035299,7]
[322262016,1712916694862,-345.01,0.00035299,7]
[322262017,1712916694872,-527.8,0.00035299,7]
[322262018,1712916694881,-496.82,0.00035299,7]
[322262019,1712916694891,-666.82,0.00035299,7]
[322262020,1712916694900,-752.833005,0.00035299,7]
[322262021,1712916694909,-586.18354887,0.00035299,7]
[322262022,1712916694918,-537.56802828,0.00035299,7]
[322262023,1712916694928,-427.05,0.00035299,7]
[322262024,1712916694937,-765.02,0.00035299,7]
[322262025,1712916694948,-550.96639654,0.00035299,7]
[322262026,1712916694958,-813.78,0.00035299,7]
[322262027,1712916694967,-721.01,0.00035299,7]
[322262028,1712916694976,-156.12850796,0.000353,2]
[322262029,1712916694986,-638.76,0.00035301,7]
[322262030,1712916694995,-212.74179419,0.00035301,7]
[322262031,1712916695005,-578.04,0.00035301,7]
[322262032,1712916695014,-544.45424031,0.00035301,7]
[322262033,1712916695024,-638.33,0.00035301,7]
[322262034,1712916695034,-708.41,0.00035301,2]
[322262035,1712916695044,-597.12,0.00035301,7]
[322262036,1712916695055,-507.89287638,0.00035301,7]
[322262037,1712916695066,-261.590782,0.00035316,2]
[322262038,1712916695076,-192.530925,0.00035316,2]
[322262039,1712916695087,-176.293797,0.00035316,2]
[322262040,1712916695099,-161.391693,0.00035316,2]
[322262041,1712916695110,-244.205687,0.00035316,2]
[322262042,1712916695121,-206.326857,0.00035316,2]
[322262043,1712916695132,-154.418911,0.00035316,2]
[322262044,1712916695143,-160.885194,0.00035316,2]
[322262045,1712916695153,-208.608099,0.00035316,2]
[322262046,1712916695164,-159.14360615,0.00035319,7]
[322262047,1712916695175,-1757.99,0.00035375,30]
[322262048,1712916695185,-1757.99,0.00035375,30]
[322262049,1712916695196,-151.0,0.00035375,7]
[322262050,1712916695206,-151.0,0.00035375,7]
[322262051,1712916695217,-151.0,0.00035375,7]
[322262052,1712916695227,-151.0,0.00035375,7]
[322262053,1712916695237,-151.0,0.00035375,7]
[322262054,1712916695247,-151.866915,0.00035375,7]
[322262055,1712916695257,-151.64322,0.00035375,7]
[322262056,1712916695266,-150.0,0.000354,4]
[322262057,1712916695276,-154.61190407,0.00035412,13]
[322262058,1712916695286,-157.83691746,0.00035441,7]
[322262059,1712916695295,-154.14042621,0.00035513,7]
[322262060,1712916695306,-154.30704407,0.00035532,7]
[322262061,1712916695317,-1500.0,0.000356,2]
[322262062,1712916695327,-960.0,0.00035616,2]
[322262063,1712916695337,-3139.56171437,0.0003562,2]
[322262064,1712916695346,-3139.56171437,0.0003562,2]
[322262065,1712916695356,-2806.25996847,0.0003562,2]
[322262066,1712916695708,-333.3017459,0.0003562,2]
[322262067,1712916695720,-3139.56171437,0.0003562,2]
[322262068,1712916695732,-3139.56171437,0.0003562,2]
[322262069,1712916695742,-3139.56171437,0.0003562,2]
[322262070,1712916695752,-3139.56171437,0.0003562,2]
[322262071,1712916695763,-3139.56171437,0.0003562,2]
[322262072,1712916695773,-3139.56171437,0.0003562,2]
[322262073,1712916695783,-3139.56171437,0.0003562,2]
[322262074,1712916695794,-3139.56171437,0.0003562,2]
[322262075,1712916695804,-3139.56171437,0.0003562,2]
[322262076,1712916695814,-3139.56171437,0.0003562,2]
[322262077,1712916695824,-3139.56171437,0.0003562,2]
[322262078,1712916695834,-3139.56171437,0.0003562,2]
[322262079,1712916695843,-3139.56171437,0.0003562,2]
[322262080,1712916695853,-3139.56171437,0.0003562,2]
[322262081,1712916695863,-3139.56171437,0.0003562,2]
[322262082,1712916695872,-3139.56171437,0.0003562,2]
[322262083,1712916695882,-3140.06,0.0003562,2]
[322262084,1712916695892,-1193.8529499,0.0003562,2]
[322262085,1712916695902,-1193.8529499,0.0003562,2]
[322262086,1712916695912,-1193.8529499,0.0003562,2]
[322262087,1712916695922,-1193.8529499,0.0003562,2]
[322262088,1712916695932,-1193.8529499,0.0003562,2]
[322262089,1712916695942,-1193.8529499,0.0003562,2]
[322262090,1712916695951,-1193.8529499,0.0003562,2]
[322262091,1712916695962,-1193.8529499,0.0003562,2]
[322262092,1712916695972,-1193.8529499,0.0003562,2]
[322262093,1712916695982,-1193.8529499,0.0003562,2]
[322262094,1712916695991,-1193.8529499,0.0003562,2]
[322262095,1712916696001,-1193.8529499,0.0003562,2]
[322262096,1712916696011,-1193.8529499,0.0003562,2]
[322262097,1712916696020,-1193.8529499,0.0003562,2]
[322262098,1712916696030,-1193.8529499,0.0003562,2]
[322262099,1712916696041,-1193.8529499,0.0003562,2]
[322262100,1712916696051,-1193.8529499,0.0003562,2]
[322262101,1712916696060,-1193.8529499,0.0003562,2]
[322262102,1712916696069,-1193.8529499,0.0003562,2]
[322262103,1712916696079,-1194.35,0.0003562,2]
[322262104,1712916696088,-236.70564634,0.0003562,2]
[322262105,1712916696098,-236.70564634,0.0003562,2]
[322262106,1712916696108,-236.70564634,0.0003562,2]
[322262107,1712916696118,-236.70564634,0.0003562,2]
[322262108,1712916696127,-236.70564634,0.0003562,2]
[322262109,1712916696137,-236.70564634,0.0003562,2]
[322262110,1712916696147,-236.70564634,0.0003562,2]
[322262111,1712916696157,-236.70564634,0.0003562,2]
[322262112,1712916696166,-236.70564634,0.0003562,2]
[322262113,1712916696178,-236.70564634,0.0003562,2]
[322262114,1712916696188,-236.70564634,0.0003562,2]
[322262115,1712916696198,-236.70564634,0.0003562,2]
[322262116,1712916696208,-236.70564634,0.0003562,2]
[322262117,1712916696217,-236.70564634,0.0003562,2]
[322262118,1712916696227,-236.70564634,0.0003562,2]
[322262119,1712916696237,-236.70564634,0.0003562,2]
[322262120,1712916696247,-236.70564634,0.0003562,2]
[322262121,1712916696256,-236.70564634,0.0003562,2]
[322262122,1712916696265,-236.70564634,0.0003562,2]
[322262123,1712916696276,-237.2,0.0003562,2]
[322262124,1712916696285,-1071.47648586,0.0003562,2]
[322262125,1712916696295,-1071.47648586,0.0003562,2]
[322262126,1712916696305,-1071.47648586,0.0003562,2]
[322262127,1712916696314,-1071.47648586,0.0003562,2]
[322262128,1712916696324,-1071.47648586,0.0003562,2]
[322262129,1712916696333,-1071.47648586,0.0003562,2]
[322262130,1712916696343,-1071.47648586,0.0003562,2]
[322262131,1712916696353,-1071.47648586,0.0003562,2]
[322262132,1712916696363,-1071.47648586,0.0003562,2]
[322262133,1712916696372,-1071.47648586,0.0003562,2]
[322262134,1712916696382,-1071.47648586,0.0003562,2]
[322262135,1712916696391,-1071.47648586,0.0003562,2]
[322262136,1712916696400,-1071.47648586,0.0003562,2]
[322262137,1712916696410,-1071.47648586,0.0003562,2]
[322262138,1712916696419,-1071.47648586,0.0003562,2]
[322262139,1712916696429,-1071.47648586,0.0003562,2]
[322262140,1712916696439,-1071.47648586,0.0003562,2]
[322262141,1712916696449,-1071.47648586,0.0003562,2]
[322262142,1712916696458,-1071.47648586,0.0003562,2]
[322262143,1712916696468,-1071.97,0.0003562,2]
[322262144,1712916696478,-151.0,0.0003562,7]
[322262145,1712916696488,-156.33363119,0.0003564,7]
[322262146,1712916696498,-1757.99,0.00035648,30]
[322262147,1712916696508,-1757.99,0.00035648,30]
[322262148,1712916696517,-157.83691746,0.00035649,7]
[322262149,1712916696527,-166.81018583,0.00035668,7]
[322262150,1712916696537,-160.62596681,0.00035757,7]
[322262151,1712916696547,-261.590782,0.00035758,2]
[322262152,1712916696557,-159.14360615,0.00035794,7]
[322262153,1712916696568,-151.68,0.00035827,2]
[322262154,1712916696578,-156.08416384,0.0003583,7]
[322262155,1712916696587,-150.0,0.000359,4]
[322262156,1712916696597,-1757.99,0.00035921,30]
[322262157,1712916696607,-1757.99,0.00035921,30]
[322262158,1712916696617,-1013.2,0.0003597,2]
[322262159,1712916696627,-154.6828105,0.00035973,7]
[322262160,1712916696637,-100000.0,0.00036,26]
[322262161,1712916696648,-612.10148746,0.00036,2]
[322262162,1712916696659,-222.0,0.00036,2]
[322262163,1712916696670,-427.0,0.00036,2]
[322262164,1712916696680,-750.8,0.00036,2]
[322262165,1712916696695,-351.0,0.00036,2]
[322262166,1712916696704,-767.25,0.00036068,2]
[322262167,1712916696715,-401.78685,0.000361,2]
[322262168,1712916696725,-318.2,0.0003616,2]
[322262169,1712916696735,-1757.99,0.00036194,30]
[322262170,1712916696745,-1757.99,0.00036194,30]
[322262171,1712916696755,-261.590782,0.00036199,2]
[322262172,1712916696766,-161.391693,0.00036199,2]
[322262173,1712916696777,-153.95330431,0.0003624,7]
[322262174,1712916696787,-160.62596681,0.00036271,7]
[322262175,1712916696797,-155.07714216,0.00036282,7]
[322262176,1712916696807,-166.66666667,0.00036294,7]
[322262177,1712916696817,-154.30704407,0.00036307,7]
[322262178,1712916696828,-154.6828105,0.0003634,7]
[322262179,1712916696838,-156.33363119,0.0003639,7]
[322262180,1712916696848,-160.62596681,0.0003639,7]
[322262181,1712916696857,-150.0,0.000364,4]
[322262182,1712916696867,-154.61190407,0.00036412,17]
[322262183,1712916696876,-1757.99,0.00036468,30]
[322262184,1712916696886,-1757.99,0.00036468,30]
[322262185,1712916696895,-157.83691746,0.00036545,7]
[322262186,1712916696905,-156.08416384,0.00036569,7]
[322262187,1712916696914,-154.6828105,0.00036582,7]
[322262188,1712916696924,-159.44386895,0.00036618,7]
[322262189,1712916696933,-261.590782,0.00036641,2]
[322262190,1712916696942,-151.08912702,0.00036701,7]
[322262191,1712916696952,-1757.99,0.00036741,30]
[322262192,1712916696961,-1757.99,0.00036741,30]
[322262193,1712916696971,-155.07714216,0.00036809,7]
[322262194,1712916696981,-150.0,0.000369,5]
[322262195,1712916696990,-960.0,0.00036986,7]
[322262196,1712916696999,-157.96399928,0.00036989,7]
[322262197,1712916697010,-100000.0,0.00037,27]
[322262198,1712916697020,-155.893476,0.00037,7]
[322262199,1712916697029,-151.0,0.00037,7]
[322262200,1712916697039,-151.0,0.00037,7]
[322262201,1712916697049,-151.0,0.00037,7]
[322262202,1712916697058,-151.0,0.00037,7]
[322262203,1712916697067,-151.0,0.00037,7]
[322262204,1712916697076,-1013.2,0.00037005,2]
[322262205,1712916697085,-1757.99,0.00037014,30]
[322262206,1712916697095,-1757.99,0.00037014,30]
[322262207,1712916697105,-160.62596681,0.00037034,7]
[322262208,1712916697115,-261.590782,0.00037082,2]
[322262209,1712916697124,-176.293797,0.00037082,2]
[322262210,1712916697134,-161.391693,0.00037082,2]
[322262211,1712916697143,-983.26,0.000371,2]
[322262212,1712916697152,-609.5,0.000371,2]
[322262213,1712916697161,-154.6828105,0.00037109,7]
[322262214,1712916697170,-155.07714216,0.00037146,7]
[322262215,1712916697179,-154.30704414,0.00037206,7]
[322262216,1712916697189,-154.6828105,0.00037265,7]
[322262217,1712916697198,-1757.99,0.00037287,30]
[322262218,1712916697207,-1757.99,0.00037287,30]
[322262219,1712916697217,-318.2,0.0003729,2]
[322262220,1712916697226,-157.83691746,0.00037302,7]
[322262221,1712916697235,-157.83691746,0.00037349,7]
[322262222,1712916697244,-160.62596681,0.00037355,7]
[322262223,1712916697253,-150.0,0.000374,5]
[322262224,1712916697262,-154.61190407,0.00037412,21]
[322262225,1712916697272,-166.41585679,0.00037465,7]
[322262226,1712916697281,-154.14042621,0.00037492,7]
[322262227,1712916697290,-157.18906211,0.0003753,7]
[322262228,1712916697299,-152.35,0.00037573,2]
[322262229,1712916697308,-159.14360615,0.00037612,7]
[322262230,1712916697318,-156.12850796,0.000377,2]
[322262231,1712916697327,-157.83691746,0.00037862,7]
[322262232,1712916697336,-159.14360625,0.00037891,7]
[322262233,1712916697345,-150.0,0.000379,5]
[322262234,1712916697355,-150.0,0.00037936,2]
[322262235,1712916697364,-160.62596681,0.00037942,7]
[322262236,1712916697373,-150.0,0.00037956,2]
[322262237,1712916697382,-150.0,0.00037994,2]
[322262238,1712916697392,-100000.0,0.00038,28]
[322262239,1712916697401,-151.0,0.00038,7]
[322262240,1712916697411,-154.072428,0.00038,7]
[322262241,1712916697420,-151.0,0.00038,7]
[322262242,1712916697429,-151.0,0.00038,7]
[322262243,1712916697439,-151.0,0.00038,7]
[322262244,1712916697448,-151.0,0.00038,7]
[322262245,1712916697458,-154.636791,0.00038,7]
[322262246,1712916697467,-150.0,0.0003801,2]
[322262247,1712916697476,-150.0,0.00038026,2]
[322262248,1712916697486,-910.06,0.00038027,15]
[322262249,1712916697495,-150.0,0.00038034,2]
[322262250,1712916697504,-1957.352423,0.0003804,2]
[322262251,1712916697514,-155.07714216,0.00038114,7]
[322262252,1712916697523,-154.6828105,0.00038134,7]
[322262253,1712916697532,-150.0,0.0003815,2]
[322262254,1712916697543,-153.99568916,0.00038181,7]
[322262255,1712916697552,-150.0,0.00038182,2]
[322262256,1712916697561,-160.62596687,0.00038193,7]
[322262257,1712916697571,-150.0,0.00038196,2]
[322262258,1712916697580,-150.0,0.00038197,2]
[322262259,1712916697589,-1057.06243461,0.00038217,5]
[322262260,1712916697598,-1083.48414012,0.00038217,5]
[322262261,1712916697607,-150.0,0.00038227,2]
[322262262,1712916697617,-156.33363119,0.00038241,7]
[322262263,1712916697626,-150.0,0.00038259,2]
[322262264,1712916697636,-150.0,0.00038271,2]
[322262265,1712916697646,-154.6828105,0.00038274,7]
[322262266,1712916697655,-150.0,0.00038284,2]
[322262267,1712916697664,-150.0,0.00038315,2]
[322262268,1712916697674,-767.25,0.00038332,2]
[322262269,1712916697684,-150.0,0.00038333,2]
[322262270,1712916697694,-154.57743463,0.00038351,7]
[322262271,1712916697704,-960.0,0.00038356,7]
[322262272,1712916697713,-150.0,0.00038359,2]
[322262273,1712916697724,-150.0,0.00038365,2]
[322262274,1712916697733,-150.0,0.00038366,2]
[322262275,1712916697743,-150.0,0.00038369,2]
[322262276,1712916697752,-150.0,0.00038373,2]
[322262277,1712916697763,-150.0,0.00038384,2]
[322262278,1712916697773,-150.0,0.00038384,2]
[322262279,1712916697782,-150.0,0.00038391,2]
[322262280,1712916697792,-150.0,0.00038391,2]
[322262281,1712916697801,-3285.59603356,0.00038391,2]
[322262282,1712916697811,-1500.0,0.000384,2]
[322262283,1712916697821,-150.0,0.000384,5]
[322262284,1712916697831,-150.0,0.00038407,2]
[322262285,1712916697840,-150.0,0.00038411,2]
[322262286,1712916697850,-154.61190407,0.00038412,26]
[322262287,1712916697859,-150.0,0.00038415,2]
[322262288,1712916697868,-150.0,0.00038416,2]
[322262289,1712916697879,-318.2,0.0003842,2]
[322262290,1712916697889,-157.93,0.00038425,2]
[322262291,1712916697898,-150.0,0.00038435,2]
[322262292,1712916697908,-150.0,0.00038437,2]
[322262293,1712916697917,-150.0,0.00038447,2]
[322262294,1712916697927,-150.0,0.00038451,2]
[322262295,1712916697936,-300.0,0.0003846,2]
[322262296,1712916697945,-154.6828105,0.00038469,7]
[322262297,1712916697954,-150.0,0.0003848,2]
[322262298,1712916697964,-154.6828105,0.00038493,7]
[322262299,1712916697973,-1000.0,0.000385,7]
[322262300,1712916697983,-174.67147129,0.00038501,2]
[322262301,1712916697993,-150.0,0.00038502,2]
[322262302,1712916698003,-150.0,0.00038513,2]
[322262303,1712916698012,-150.0,0.00038521,2]
[322262304,1712916698022,-150.0,0.00038525,2]
[322262305,1712916698032,-150.0,0.00038533,2]
[322262306,1712916698042,-150.0,0.00038535,2]
[322262307,1712916698051,-150.0,0.00038549,2]
[322262308,1712916698061,-150.0,0.00038561,2]
[322262309,1712916698071,-150.0,0.00038567,2]
[322262310,1712916698081,-150.0,0.00038573,2]
[322262311,1712916698090,-252.72329,0.0003858,2]
[322262312,1712916698100,-150.0,0.00038581,2]
[322262313,1712916698111,-176.26038041,0.00038581,2]
[322262314,1712916698121,-1500.0,0.00038585,2]
[322262315,1712916698132,-150.0,0.00038588,2]
[322262316,1712916698142,-150.0,0.00038589,2]
[322262317,1712916698151,-150.0,0.00038591,2]
[322262318,1712916698160,-150.0,0.00038591,2]
[322262319,1712916698170,-150.0,0.00038591,2]
[322262320,1712916698180,-245.72,0.000386,3]
[322262321,1712916698190,-245.72,0.000386,3]
[322262322,1712916698199,-245.72,0.000386,3]
[322262323,1712916698209,-245.72,0.000386,3]
[322262324,1712916698219,-245.72,0.000386,3]
[322262325,1712916698228,-245.72,0.000386,3]
[322262326,1712916698238,-245.72,0.000386,3]
[322262327,1712916698247,-245.72,0.000386,3]
[322262328,1712916698257,-245.72,0.000386,3]
[322262329,1712916698267,-245.72,0.000386,3]
[322262330,1712916698277,-245.72,0.000386,3]
[322262331,1712916698287,-245.72,0.000386,3]
[322262332,1712916698299,-245.72,0.000386,3]
[322262333,1712916698310,-245.72,0.000386,3]
[322262334,1712916698322,-245.72,0.000386,3]
[322262335,1712916698334,-245.72,0.000386,3]
[322262336,1712916698345,-245.72,0.000386,3]
[322262337,1712916698358,-245.72,0.000386,3]
[322262338,1712916698369,-245.72,0.000386,3]
[322262339,1712916698379,-245.72,0.000386,3]
[322262340,1712916698389,-245.72,0.000386,3]
[322262341,1712916698400,-245.72,0.000386,3]
[322262342,1712916698410,-245.72,0.000386,3]
[322262343,1712916698420,-245.72,0.000386,3]
[322262344,1712916698430,-157.83691746,0.00038604,7]
[322262345,1712916698439,-150.0,0.00038608,2]
[322262346,1712916698449,-7391.97887061,0.0003861,2]
[322262347,1712916698459,-150.0,0.00038613,2]
[322262348,1712916698469,-150.0,0.00038614,2]
[322262349,1712916698478,-150.0,0.00038633,2]
[322262350,1712916698488,-150.0,0.00038639,2]
[322262351,1712916698497,-150.0,0.00038645,2]
[322262352,1712916698507,-300.0,0.00038654,2]
[322262353,1712916698516,-200.0,0.00038657,15]
[322262354,1712916698526,-1000.0,0.00038657,20]
[322262355,1712916698535,-500.0,0.00038657,20]
[322262356,1712916698546,-500.0,0.00038657,20]
[322262357,1712916698556,-150.0,0.00038658,2]
[322262358,1712916698565,-154.6828105,0.00038666,7]
[322262359,1712916698574,-150.0,0.00038668,2]
[322262360,1712916698584,-150.0,0.00038674,2]
[322262361,1712916698593,-154.14042621,0.00038675,7]
[322262362,1712916698602,-150.0,0.00038685,2]
[322262363,1712916698611,-150.0,0.00038688,2]
[322262364,1712916698620,-150.0,0.00038697,2]
[322262365,1712916698630,-150.0,0.00038702,2]
[322262366,1712916698639,-1098.59929156,0.00038704,2]
[322262367,1712916698649,-150.0,0.00038711,2]
[322262368,1712916698658,-150.0,0.00038712,2]
[322262369,1712916698667,-150.0,0.0003872,2]
[322262370,1712916698676,-150.0,0.00038725,2]
[322262371,1712916698688,-150.0,0.00038731,2]
[322262372,1712916698697,-154.6828105,0.00038733,7]
[322262373,1712916698707,-150.0,0.00038737,2]
[322262374,1712916698716,-150.0,0.0003874,2]
[322262375,1712916698726,-150.0,0.00038751,2]
[322262376,1712916698736,-150.73387859,0.00038755,2]
[322262377,1712916698745,-150.0,0.0003876,2]
[322262378,1712916698754,-150.0,0.00038772,2]
[322262379,1712916698764,-155.07714216,0.00038777,7]
[322262380,1712916698773,-500.0,0.0003878,10]
[322262381,1712916698782,-600.0,0.0003878,10]
[322262382,1712916698792,-500.0,0.0003878,10]
[322262383,1712916698801,-500.0,0.0003878,10]
[322262384,1712916698811,-2300.0,0.0003878,10]
[322262385,1712916698820,-2625.74496816,0.0003878,2]
[322262386,1712916698829,-874.35861166,0.0003878,2]
[322262387,1712916698839,-351.82655751,0.0003878,2]
[322262388,1712916698849,-155.80223276,0.0003878,2]
[322262389,1712916698858,-150.0,0.00038792,2]
[322262390,1712916698867,-150.0,0.00038795,2]
[322262391,1712916698876,-150.0,0.00038797,2]
[322262392,1712916698885,-609.5,0.000388,7]
[322262393,1712916698894,-4566.76,0.000388,3]